lending/lending_fUSD_20250920
["ID","MTS","AMOUNT","RATE_DAILY","PERIOD"]
[386548718,1758379047214,-92.63744211,0.000187,2]
[386548724,1758379054370,-214.72511578,0.000187,2]
[386548735,1758379061979,-154.08098774,0.000187,2]
[386548736,1758379062007,-195.0,0.00018749,2]
[386548737,1758379062040,-798.45802452,0.00018777,2]
[386548739,1758379070023,-201.54197548,0.00018777,2]
[386548854,1758379347905,500.0,0.00013699,2]
[386548902,1758379478196,159.19,9.314e-05,2]
[386548903,1758379502786,500.0,0.00030136,120]
[386548904,1758379503771,457.0,0.00018505,2]
[386548908,1758379518499,150.0,0.00018,2]
[386548909,1758379518619,150.0,0.00018,2]
[386548910,1758379519810,150.0,0.00018,2]
[386548913,1758379522341,150.0,0.00018,2]
[386548914,1758379527085,150.0,0.00018,2]
[386548915,1758379527636,150.0,0.00018,2]
[386548917,1758379535633,150.0,0.00018,2]
[386548918,1758379538954,150.0,0.00018,2]
[386548950,1758379628595,5800.0,0.00013503,2]
[386548959,1758379677686,150.0,0.0001859,7]
[386548977,1758379707932,168.0,0.0001837,2]
[386548983,1758379723972,-400.0,0.00018598,2]
[386548984,1758379723997,-500.0,0.00018598,2]
[386548985,1758379724024,-500.0,0.00018598,2]
[386548986,1758379724054,-500.0,0.00018598,2]
[386548987,1758379724081,-500.0,0.00018598,2]
[386548988,1758379724105,-500.0,0.00018598,2]
[386548989,1758379724131,-400.0,0.00018598,2]
[386549006,1758379756570,200.0,0.00018,2]
[386549071,1758379833017,-150.0,0.00018606,2]
[386549072,1758379833027,-107.55381312,0.00018614,2]
[386549073,1758379833147,-72.14618688,0.00018614,2]
[386549074,1758379833157,-518.70898442,0.00018614,2]
[386549075,1758379833169,-1917.29626969,0.00018614,2]
[386549076,1758379833181,-466.70140057,0.00018614,2]
[386549077,1758379833193,-227.38334532,0.00018614,2]
[386549078,1758379833203,-250.0,0.00018618,2]
[386549079,1758379833213,-1063.32028112,0.00018622,2]
[386549080,1758379833237,-136.67971888,0.00018622,2]
[386549081,1758379833247,-412.54,0.00018623,2]
[386549082,1758379833258,-300.0,0.0001864,2]
[386549083,1758379833267,-160.0,0.00018641,2]
[386549084,1758379833277,-1000.0,0.00018641,2]
[386549085,1758379833287,-241.44903557,0.00018786,2]
[386549086,1758379833297,-326.03730152,0.00018786,2]
[386549087,1758379833306,-201.10932867,0.00018786,2]
[386549088,1758379833316,-500.0,0.00018786,2]
[386549089,1758379833325,-2468.68461536,0.00018787,2]
[386549090,1758379833345,-269.15901648,0.00018787,2]
[386549091,1758379833379,-500.0,0.00018613,2]
[386549092,1758379833390,-1974.98636816,0.00018787,2]
[386549093,1758379833400,-213.32528632,0.00018798,2]
[386549094,1758379833411,-500.0,0.00018801,2]
[386549095,1758379833421,-168.0,0.00018872,2]
[386549096,1758379833430,-168.0,0.00018883,2]
[386549097,1758379833441,-168.0,0.00018903,2]
[386549098,1758379833451,-268.5398127,0.0001898,2]
[386549099,1758379833463,-662.83704387,0.0001898,2]
[386549100,1758379833488,-282.3087368,0.00018613,2]
[386549101,1758379833498,-1920.20182372,0.0001898,2]
[386549102,1758379833508,-322.6107,0.00018989,2]
[386549103,1758379833518,-200.0,0.00018989,2]
[386549104,1758379833528,-151.0,0.00018989,2]
[386549105,1758379833538,-18611.33,0.00019,2]
[386549106,1758379833547,-168.0,0.00019006,2]
[386549107,1758379833557,-168.0,0.00019012,2]
[386549108,1758379833567,-516.38316968,0.00019026,2]
[386549109,1758379833577,-1122.91,0.00019032,2]
[386549110,1758379833587,-173.74,0.00019081,2]
[386549111,1758379833596,-805.2,0.000191,2]
[386549112,1758379833606,-472.59,0.000191,2]
[386549113,1758379833615,-366.60760615,0.000191,2]
[386549114,1758379833627,-438.59239385,0.000191,2]
[386549115,1758379833637,-472.59,0.000191,2]
[386549116,1758379833647,-805.2,0.000191,2]
[386549117,1758379833657,-472.59,0.000191,2]
[386549118,1758379833666,-805.2,0.000191,2]
[386549119,1758379833676,-472.59,0.000191,2]
[386549120,1758379833686,-805.2,0.000191,2]
[386549121,1758379833696,-472.59,0.000191,2]
[386549122,1758379833707,-472.59,0.000191,2]
[386549123,1758379833717,-805.2,0.000191,2]
[386549124,1758379833728,-805.2,0.000191,2]
[386549125,1758379833738,-472.59,0.000191,2]
[386549126,1758379833748,-1000.0,0.00019178,2]
[386549127,1758379833758,-1095.3000255,0.000192,2]
[386549128,1758379833768,-150.0,0.000192,2]
[386549129,1758379833779,-167.31,0.00019278,2]
[386549130,1758379833789,-260.17,0.00019297,2]
[386549131,1758379833800,-500.0,0.000193,7]
[386549132,1758379833810,-168.0,0.00019378,2]
[386549133,1758379833820,-150.0,0.000194,2]
[386549134,1758379833830,-1000.0,0.000194,7]
[386549135,1758379833840,-168.0,0.00019458,2]
[386549136,1758379833849,-168.0,0.000195,2]
[386549137,1758379833858,-543.68,0.000195,2]
[386549138,1758379833868,-321.05,0.000195,2]
[386549139,1758379833878,-150.0,0.000195,2]
[386549140,1758379833888,-543.68,0.000195,2]
[386549141,1758379833898,-150.0,0.000195,2]
[386549142,1758379833908,-392.99,0.000195,2]
[386549143,1758379833917,-150.0,0.000195,2]
[386549144,1758379833927,-1082.84,0.000195,2]
[386549145,1758379833937,-1500.0,0.000195,7]
[386549146,1758379833947,-247.3930528,0.00019537,2]
[386549147,1758379833958,-151.0,0.00019537,2]
[386549148,1758379833968,-2000.0,0.000196,7]
[386549149,1758379833979,-1430.47,0.00019671,2]
[386549150,1758379833989,-168.0,0.0001969,2]
[386549151,1758379833998,-2500.0,0.000197,7]
[386549152,1758379834008,-1000.0,0.000197,2]
[386549153,1758379834018,-947.29447083,0.00019716,2]
[386549154,1758379834027,-1000.0,0.00019726,2]
[386549155,1758379834037,-947.29447077,0.00019736,2]
[386549156,1758379834046,-168.0,0.00019748,2]
[386549157,1758379834056,-721.84600614,0.00019753,2]
[386549158,1758379834067,-947.29447077,0.00019757,2]
[386549159,1758379834086,-947.29447077,0.00019777,2]
[386549160,1758379834106,-42282.30630011,0.0001979,2]
[386549161,1758379834125,-947.29447077,0.00019798,2]
[386549162,1758379834144,-500.0,0.000198,7]
[386549163,1758379834164,-209.97446857,0.000198,2]
[386549164,1758379834176,-57820.74383888,0.000198,2]
[386549165,1758379834188,-494.58986716,0.000198,2]
[386549166,1758379834214,-2886.01060558,0.000198,2]
[386549167,1758379834367,-540.672957,0.000198,2]
[386549168,1758379834379,-380.15953325,0.000198,2]
[386549169,1758379834391,-1019.52978662,0.000198,2]
[386549170,1758379834402,-2547.61520763,0.000198,2]
[386549171,1758379834414,-288.86218293,0.000198,2]
[386549172,1758379834426,-440.96581108,0.000198,2]
[386549173,1758379834437,-549.04036244,0.000198,2]
[386549174,1758379837806,-13267.39655991,0.000198,2]
[386549175,1758379837819,-405.47053534,0.000198,2]
[386549176,1758379837831,-39117.2339,0.000198,2]
[386549249,1758379839951,-899.11315258,0.000198,2]
[386549250,1758379840003,-76058.81268226,0.000198,2]
[386549251,1758379840012,-209.97446854,0.00019814,2]
[386549252,1758379840021,-947.29447077,0.00019818,2]
[386549253,1758379840031,-209.97446854,0.00019829,2]
[386549254,1758379840041,-168.0,0.00019832,2]
[386549255,1758379840050,-721.84600614,0.00019836,2]
[386549256,1758379840060,-947.29447077,0.00019839,2]
[386549257,1758379840070,-200.0,0.0001984,2]
[386549258,1758379840081,-209.97446854,0.00019843,2]
[386549259,1758379840091,-168.0,0.00019851,2]
[386549260,1758379840101,-209.97446854,0.00019857,2]
[386549261,1758379840110,-947.29447077,0.00019859,2]
[386549262,1758379840120,-209.97446854,0.00019871,2]
[386549263,1758379840130,-947.29447077,0.0001988,2]
[386549264,1758379840139,-209.97446854,0.00019886,2]
[386549265,1758379840148,-1086.94,0.00019887,2]
[386549266,1758379840157,-543.54,0.00019887,2]
[386549267,1758379840167,-822.67,0.00019888,2]
[386549268,1758379840176,-411.44,0.00019888,2]
[386549269,1758379840186,-150.0,0.00019888,2]
[386549270,1758379840196,-205.34945523,0.0001989,2]
[386549271,1758379840205,-167.839,0.00019891,2]
[386549272,1758379840215,-476.73,0.00019891,2]
[386549273,1758379840226,-9420.0709474,0.00019896,2]
[386549274,1758379840235,-9420.07094734,0.00019896,2]
[386549275,1758379840245,-9420.07094734,0.00019897,2]
[386549276,1758379840254,-9420.07094734,0.00019897,2]
[386549277,1758379840263,-9420.07094734,0.00019898,2]
[386549278,1758379840272,-9420.07094734,0.00019898,2]
[386549279,1758379840282,-9420.07094734,0.00019899,2]
[386549280,1758379840291,-1000.0,0.00019899,2]
[386549281,1758379840300,-185.30185817,0.00019899,2]
[386549282,1758379840310,-9420.07094734,0.00019899,2]
[386549283,1758379840319,-9420.07094734,0.000199,2]
[386549284,1758379840328,-4586.2994,0.000199,2]
[386549285,1758379840337,-1124.37059557,0.000199,2]
[386549286,1758379840347,-427.65265839,0.000199,2]
[386549287,1758379840357,-397.68056327,0.000199,2]
[386549288,1758379840366,-1758.501,0.000199,2]
[386549289,1758379840375,-3601.5219,0.000199,2]
[386549290,1758379840385,-947.29447077,0.000199,2]
[386549291,1758379840395,-500.0,0.000199,7]
[386549292,1758379840404,-209.97446854,0.000199,2]
[386549293,1758379840415,-1273.27987133,0.000199,2]
[386549294,1758379840424,-3723.44615345,0.000199,2]
[386549295,1758379840434,-233.25317512,0.000199,3]
[386549296,1758379840443,-9420.07094734,0.000199,2]
[386549297,1758379840452,-1099.51928117,0.000199,2]
[386549298,1758379840463,-2555.98829743,0.000199,2]
[386549299,1758379840472,-721.84600614,0.00019918,2]
[386549300,1758379840482,-168.0,0.00019941,2]
[386549301,1758379840491,-500.0,0.00019973,2]
[386549303,1758379840500,-348.73643919,0.00019973,2]
[386549305,1758379840510,-500.0,0.00019973,2]
[386549307,1758379840520,-500.0,0.00019973,2]
[386549309,1758379840529,-504.33092129,0.00019973,2]
[386549311,1758379840538,-500.0,0.00019973,2]
[386549313,1758379840548,-500.0,0.00019973,2]
[386549315,1758379840558,-500.0,0.00019973,2]
[386549316,1758379840568,-500.0,0.00019973,2]
[386549319,1758379840579,-500.0,0.00019973,2]
[386549321,1758379840588,-509.82658822,0.00019973,2]
[386549323,1758379840598,-500.0,0.00019973,2]
[386549325,1758379840608,-500.0,0.00019973,2]
[386549326,1758379840618,-498.77120532,0.00019973,2]
[386549328,1758379840628,-500.0,0.00019973,2]
[386549330,1758379840637,-500.0,0.00019973,2]
[386549332,1758379840647,-151.25,0.0001999,2]
[386549335,1758379840658,-151.25,0.0001999,2]
[386549336,1758379840667,-151.25,0.0001999,2]
[386549338,1758379840677,-151.25,0.0001999,2]
[386549340,1758379840686,-293.86844323,0.0001999,2]
[386549343,1758379840695,-5825.68,0.00019992,2]
[386549345,1758379840705,-5824.0,0.00019994,2]
[386549346,1758379840716,-5824.0,0.00019996,2]
[386549349,1758379840725,-151.0,0.00019997,2]
[386549350,1758379840734,-151.0,0.00019997,2]
[386549353,1758379840744,-300.0,0.00019999,2]
[386549355,1758379840753,-999.98,0.00019999,2]
[386549356,1758379840763,-161.786,0.00019999,2]
[386549358,1758379840772,-40382.4963486,0.00019999,2]
[386549360,1758379840782,-1345.0534718,0.00019999,2]
[386549362,1758379840792,-500.0,0.00019999,2]
[386549364,1758379840801,-150.0,0.00019999,2]
[386549366,1758379840811,-150.0,0.00019999,2]
[386549368,1758379840820,-150.0,0.00019999,2]
[386549370,1758379840830,-553.0,0.00019999,2]
[386549372,1758379840839,-150.0,0.00019999,2]
[386549374,1758379840849,-150.0,0.00019999,2]
[386549376,1758379840859,-500.0,0.00019999,2]
[386549378,1758379840868,-500.0,0.00019999,2]
[386549380,1758379840877,-150.0,0.00019999,2]
[386549382,1758379840887,-500.0,0.00019999,2]
[386549384,1758379840896,-188.44154145,0.00019999,2]
[386549386,1758379840905,-150.0,0.00019999,2]
[386549388,1758379840914,-500.0,0.00019999,2]
[386549390,1758379840924,-500.0,0.00019999,2]
[386549392,1758379840933,-500.0,0.00019999,2]
[386549394,1758379840942,-826.0,0.00019999,2]
[386549396,1758379840952,-150.0,0.00019999,2]
[386549398,1758379840961,-500.0,0.00019999,2]
[386549400,1758379840971,-150.0,0.00019999,2]
[386549402,1758379840980,-1067.0,0.00019999,2]
[386549404,1758379840991,-150.0,0.00019999,2]
[386549406,1758379841000,-500.0,0.00019999,2]
[386549408,1758379841010,-180.57728319,0.00019999,2]
[386549410,1758379841019,-150.0,0.00019999,2]
[386549412,1758379841028,-150.0,0.00019999,2]
[386549414,1758379841039,-500.0,0.00019999,2]
[386549416,1758379841048,-500.0,0.00019999,2]
[386549418,1758379841058,-150.0,0.00019999,2]
[386549420,1758379841069,-150.0,0.00019999,2]
[386549422,1758379841083,-500.0,0.00019999,2]
[386549424,1758379841092,-551.0,0.00019999,2]
[386549426,1758379841102,-150.0,0.00019999,2]
[386549428,1758379841111,-150.0,0.00019999,2]
[386549430,1758379841122,-150.0,0.00019999,2]
[386549432,1758379841131,-1238.0,0.00019999,2]
[386549434,1758379841140,-629.0,0.00019999,2]
[386549436,1758379841151,-500.0,0.0002,2]
[386549438,1758379841161,-500.0,0.0002,2]
[386549440,1758379841171,-30370.80621198,0.0002,2]
[386549442,1758379841180,-749.0,0.0002,2]
[386549444,1758379841189,-297473.02713296,0.0002,2]
[386549446,1758379841198,-1644413.48065903,0.0002,2]
[386549464,1758379841354,-8838.0,0.0002,2]
[386549466,1758379841365,-323.99050015,0.0002,2]
[386549468,1758379841375,-544.90783643,0.0002,2]
[386549632,1758379842918,-478.0120005,0.000199,2]
[386549634,1758379842929,-275.44135329,0.000199,2]
[386549636,1758379842939,-472.61467341,0.0002,2]
[386549639,1758379842951,-869.29442392,0.0002,2]
[386549710,1758379843682,-399.445445,0.0002,2]
[386549712,1758379843694,-709.96871533,0.0002,2]
[386549714,1758379843705,-6919.28304,0.0002,2]
[386549718,1758379843734,-309802.84787721,0.0002,2]
[386549720,1758379843745,-349.24300055,0.0002,2]
[386549730,1758379843827,-1194.80376201,0.0002,2]
[386549732,1758379843840,-2134.23388315,0.0002,2]
[386549955,1758379845857,-472.59,0.000192,2]
[386549958,1758379845867,-538.49,0.000192,2]
[386549961,1758379845877,-203254.42810219,0.0002,2]
[386549995,1758379846056,-249958.08269407,0.0002,2]
[386549998,1758379846066,-1000.0,0.0002,2]
[386550001,1758379846080,-487.0,0.0002,2]
[386550004,1758379846090,-209.0,0.0002,2]
[386550007,1758379846099,-209.0,0.0002,2]
[386550009,1758379846109,-2522.0,0.0002,2]
[386550011,1758379846118,-1500.0,0.0002,2]
[386550013,1758379846127,-1500.0,0.0002,2]
[386550015,1758379846137,-1500.0,0.0002,2]
[386550017,1758379846147,-1500.0,0.0002,2]
[386550019,1758379846157,-1500.0,0.0002,2]
[386550021,1758379846167,-1500.0,0.0002,2]
[386550024,1758379846176,-1500.0,0.0002,2]
[386550025,1758379846185,-1500.0,0.0002,2]
[386550027,1758379846195,-1500.0,0.0002,2]
[386550030,1758379846204,-1500.0,0.0002,2]
[386550032,1758379846215,-896.95,0.0002,2]
[386550034,1758379846224,-283.0,0.0002,2]
[386550036,1758379846233,-440.46013354,0.0002,2]
[386550038,1758379846243,-2379.29176067,0.0002,2]
[386550040,1758379846252,-38186.87677452,0.0002,2]
[386550041,1758379846262,-643843.15218657,0.0002,2]
[386550044,1758379846276,-477.65492475,0.0002,2]
[386550046,1758379846287,-49849.9590666,0.0002,2]
[386550448,1758380042792,7015.81,0.00018,2]
[386550449,1758380042815,2984.19,0.00018,2]
[386550471,1758380067211,-516.38316968,0.00019,2]
[386550472,1758380072151,683.56,0.00018905,2]
[386550492,1758380198747,620.1676716,0.00030136,120]
[386550580,1758380452461,158.41303382,0.00030136,120]
[386550591,1758380457335,1000.0,0.00018917,2]
[386550621,1758380468992,153.21,9.447e-05,2]
[386550627,1758380506435,246.84683032,0.000187,2]
[386550638,1758380687591,-104.68162637,0.000187,2]
[386550639,1758380694721,-400.0,0.000187,2]
[386550640,1758380702375,-43.34989391,0.000187,2]
[386550641,1758380702497,-213.30021218,0.0001882,2]
[386550642,1758380719602,150.0,0.00018,2]
[386550677,1758381017506,-500.0,0.00018782,2]
[386550678,1758381023125,1674.0,0.0003013,120]
[386550679,1758381025953,-500.0,0.00018782,2]
[386550689,1758381032258,-4.07,0.00018782,2]
[386550690,1758381032268,-179.7,0.00018783,2]
[386550691,1758381032277,-195.0,0.00018801,2]
[386550692,1758381032287,-195.0,0.00018849,2]
[386550693,1758381032296,-98.29598027,0.00018879,2]
[386550694,1758381032308,-151.70401973,0.00018879,2]
[386550695,1758381032318,-163.92657481,0.00018988,2]
[386550696,1758381032329,-31.07342519,0.00018988,2]
[386550697,1758381032339,-3818.07,0.00019151,2]
[386550698,1758381032348,-1200.0,0.00019177,2]
[386550699,1758381032358,-1000.0,0.00019178,2]
[386550700,1758381032368,-863.23,0.00019178,2]
[386550701,1758381032378,-158.55840902,0.00019382,2]
[386550703,1758381032387,-300.0,0.0001957,2]
[386550704,1758381032397,-319.0,0.00019572,2]
[386550705,1758381032406,-392.68,0.000196,2]
[386550706,1758381032416,-905.11,0.000196,2]
[386550707,1758381032425,-804.85,0.000196,2]
[386550708,1758381032435,-319.0,0.00019651,2]
[386550709,1758381032445,-322.6107,0.00019688,2]
[386550710,1758381032454,-500.0,0.00019688,2]
[386550711,1758381032465,-500.0,0.00019688,2]
[386550712,1758381032475,-500.0,0.00019688,2]
[386550713,1758381032485,-500.0,0.00019688,2]
[386550714,1758381032495,-509.09268663,0.00019688,2]
[386550715,1758381032504,-1446.5200392,0.00019688,2]
[386550716,1758381032514,-151.0,0.00019688,2]
[386550717,1758381032524,-151.0,0.00019688,2]
[386550719,1758381032533,-200.0,0.00019688,2]
[386550721,1758381032543,-200.0,0.00019688,2]
[386550723,1758381032552,-274.18288143,0.00019688,2]
[386550725,1758381032561,-578.22611107,0.00019699,2]
[386550727,1758381032571,-169.0143249,0.00019699,2]
[386550729,1758381032580,-1396.28142256,0.000197,2]
[386550732,1758381032591,-4605.2,0.000197,2]
[386550733,1758381032602,-3316.9600481,0.000197,2]
[386550743,1758381032710,-325.25332309,0.000197,2]
[386550745,1758381032721,-358.30667691,0.000197,2]
[386550747,1758381032732,-23243.50222934,0.000197,2]
[386550749,1758381032741,-59539.3291034,0.000197,2]
[386550753,1758381038525,-500.0,0.0001915,2]
[386550754,1758381038534,-247.00265292,0.0001915,2]
[386550755,1758381038545,-252.99734708,0.0001915,2]
[386550756,1758381038555,-500.0,0.0001915,2]
[386550757,1758381038565,-300.0,0.0001915,2]
[386550758,1758381038575,-820.99265292,0.000197,2]
[386550759,1758381038654,-25490.13494368,0.000197,2]
[386550760,1758381038663,-4098.45,0.000197,2]
[386550761,1758381038672,-1000.0,0.00019726,2]
[386550762,1758381038682,-208.14,0.00019735,2]
[386550763,1758381038691,-168.0,0.00019735,2]
[386550764,1758381038701,-319.0,0.00019762,2]
[386550765,1758381038711,-511.72182761,0.00019792,2]
[386550766,1758381038720,-1086.5,0.000198,2]
[386550767,1758381038729,-1233.03029,0.000198,2]
[386550768,1758381038739,-511.72182759,0.00019804,2]
[386550769,1758381038749,-511.72182759,0.00019816,2]
[386550770,1758381038759,-511.72182759,0.00019828,2]
[386550771,1758381038768,-511.72182759,0.0001984,2]
[386550772,1758381038778,-511.72182759,0.00019852,2]
[386550773,1758381038787,-511.72182759,0.00019864,2]
[386550774,1758381038797,-244.66641,0.0001987,2]
[386550775,1758381038806,-511.72182759,0.00019876,2]
[386550776,1758381038815,-319.0,0.00019879,2]
[386550777,1758381038825,-381.384,0.00019887,2]
[386550778,1758381038834,-167.839,0.00019887,2]
[386550779,1758381038845,-511.72182759,0.00019888,2]
[386550780,1758381038854,-569.0,0.00019892,2]
[386550781,1758381038864,-602.0,0.00019892,2]
[386550782,1758381038873,-1304.0,0.00019892,2]
[386550783,1758381038883,-819.0,0.00019892,2]
[386550784,1758381038892,-4173.0,0.00019892,2]
[386550785,1758381038901,-727.0,0.00019892,2]
[386550786,1758381038911,-6223.0,0.00019892,2]
[386550787,1758381038921,-18883.0,0.00019892,2]
[386550789,1758381038930,-512.4131,0.00019899,2]
[386550791,1758381038940,-743.2535,0.000199,2]
[386550793,1758381038949,-1603.75,0.000199,2]
[386550794,1758381038959,-150.58,0.000199,2]
[386550795,1758381038968,-167.31,0.000199,2]
[386550796,1758381038977,-516.20860859,0.000199,2]
[386550797,1758381038987,-397.31374496,0.000199,2]
[386550798,1758381038997,-185.30185817,0.000199,2]
[386550799,1758381039009,-5000.0,0.000199,2]
[386550800,1758381039019,-511.72182759,0.000199,2]
[386550801,1758381039028,-713.27188941,0.000199,2]
[386550802,1758381039038,-211.93849748,0.000199,2]
[386550803,1758381039049,-190.73659054,0.000199,2]
[386550804,1758381039059,-1669.57304362,0.000199,2]
[386550805,1758381039069,-19234.43985928,0.000199,2]
[386550806,1758381039080,-183.79283244,0.000199,3]
[386550807,1758381039090,-500.0,0.00019973,2]
[386550808,1758381039100,-500.0,0.00019973,2]
[386550809,1758381039109,-500.0,0.00019973,2]
[386550810,1758381039119,-502.42090993,0.00019973,2]
[386550811,1758381039128,-500.0,0.00019973,2]
[386550812,1758381039137,-500.0,0.00019973,2]
[386550813,1758381039147,-500.0,0.00019973,2]
[386550814,1758381039156,-500.0,0.00019973,2]
[386550815,1758381039172,-500.0,0.00019973,2]
[386550816,1758381039181,-303.47305605,0.00019973,2]
[386550817,1758381039191,-500.0,0.00019973,2]
[386550820,1758381039200,-500.0,0.00019973,2]
[386550822,1758381039209,-500.0,0.00019973,2]
[386550824,1758381039218,-500.0,0.00019973,2]
[386550826,1758381039227,-500.0,0.00019973,2]
[386550828,1758381039236,-632.34392272,0.00019973,2]
[386550829,1758381039246,-174.06,0.00019984,2]
[386550832,1758381039256,-151.25,0.0001999,2]
[386550833,1758381039265,-151.25,0.0001999,2]
[386550834,1758381039274,-151.25,0.0001999,2]
[386550835,1758381039283,-151.25,0.0001999,2]
[386550836,1758381039293,-293.86844323,0.0001999,2]
[386550837,1758381039302,-151.0,0.00019997,2]
[386550838,1758381039311,-151.0,0.00019997,2]
[386550839,1758381039321,-300.0,0.00019999,2]
[386550840,1758381039330,-999.97,0.00019999,2]
[386550841,1758381039339,-500.0,0.00019999,2]
[386550842,1758381039349,-500.0,0.00019999,2]
[386550843,1758381039358,-150.0,0.00019999,2]
[386550844,1758381039368,-150.0,0.00019999,2]
[386550845,1758381039377,-153.27379641,0.00019999,2]
[386550846,1758381039386,-150.0,0.00019999,2]
[386550847,1758381039396,-574.0,0.00019999,2]
[386550848,1758381039405,-150.0,0.00019999,2]
[386550849,1758381039415,-180.72691337,0.00019999,2]
[386550850,1758381039450,-319.27308663,0.00019999,2]
[386550851,1758381039460,-150.0,0.00019999,2]
[386550852,1758381039470,-500.0,0.00019999,2]
[386550853,1758381039480,-188.44154145,0.00019999,2]
[386550854,1758381039489,-150.0,0.00019999,2]
[386550855,1758381039499,-500.0,0.00019999,2]
[386550856,1758381039509,-500.0,0.00019999,2]
[386550857,1758381039520,-500.0,0.00019999,2]
[386550858,1758381039530,-150.0,0.00019999,2]
[386550859,1758381039540,-150.0,0.00019999,2]
[386550860,1758381039549,-500.0,0.00019999,2]
[386550861,1758381039559,-551.0,0.00019999,2]
[386550862,1758381039569,-150.0,0.00019999,2]
[386550863,1758381039579,-150.0,0.00019999,2]
[386550864,1758381039589,-150.0,0.00019999,2]
[386550865,1758381039598,-500.0,0.00019999,2]
[386550866,1758381039608,-629.0,0.00019999,2]
[386550867,1758381039618,-500.0,0.00019999,2]
[386550868,1758381039628,-522.0,0.00019999,2]
[386550869,1758381039638,-500.0,0.00019999,2]
[386550873,1758381039946,-201.39189227,0.00019999,2]
[386550874,1758381039966,-861.0,0.00019999,2]
[386550875,1758381039975,-500.0,0.00019999,2]
[386550877,1758381039986,-150.0,0.00019999,2]
[386550879,1758381039996,-500.0,0.00019999,2]
[386550881,1758381040010,-500.0,0.00019999,2]
[386550883,1758381040019,-150.16598139,0.00019999,2]
[386550885,1758381040028,-500.0,0.00019999,2]
[386550887,1758381040038,-500.0,0.00019999,2]
[386550889,1758381040048,-3350.0,0.00019999,2]
[386550891,1758381040058,-500.0,0.00019999,2]
[386550893,1758381040068,-150.32338469,0.00019999,2]
[386550895,1758381040078,-150.0,0.00019999,2]
[386550897,1758381040088,-150.39379499,0.00019999,2]
[386550900,1758381040098,-150.0,0.00019999,2]
[386550902,1758381040109,-150.0,0.00019999,2]
[386550903,1758381040118,-1077.63734681,0.00019999,5]
[386550906,1758381040128,-150.0,0.00019999,2]
[386550908,1758381040137,-150.0,0.00019999,2]
[386550909,1758381040147,-500.0,0.00019999,2]
[386550911,1758381040158,-1067.0,0.00019999,2]
[386550913,1758381040167,-152.91826207,0.00019999,2]
[386550914,1758381040176,-150.0,0.00019999,2]
[386550915,1758381040186,-180.57728319,0.00019999,2]
[386550916,1758381040196,-500.0,0.00019999,2]
[386550917,1758381040205,-751.0,0.0002,2]
[386550918,1758381040214,-500.0,0.0002,2]
[386550919,1758381040223,-500.0,0.0002,2]
[386550920,1758381040233,-500.0,0.0002,2]
[386550921,1758381040243,-30370.80621198,0.0002,2]
[386550922,1758381040252,-3588.90096479,0.0002,2]
[386550943,1758381040615,-2983.41768548,0.0002,2]
[386550944,1758381040650,-400200.23623232,0.0002,2]
[386550945,1758381040660,-1266100.83908059,0.0002,2]
[386550946,1758381040670,-383352.12177933,0.0002,2]